fUST/lending_fUST_20240820
["ID","MTS","AMOUNT","RATE_DAILY","PERIOD"]
[335326490,1724115038265,-250.0,0.00011353,2]
[335326491,1724115038274,-250.0,0.00011383,2]
[335326493,1724115038285,-250.0,0.00011414,2]
[335326494,1724115038294,-250.0,0.00011444,2]
[335326496,1724115038306,-250.0,0.00011474,2]
[335326498,1724115038316,-250.0,0.00011504,2]
[335326500,1724115038325,-250.0,0.00011535,2]
[335326503,1724115038334,-250.0,0.00011565,2]
[335326506,1724115038343,-250.0,0.00011595,2]
[335326510,1724115038354,-250.0,0.00011626,2]
[335326514,1724115038364,-420.0,0.00011803,2]
[335326516,1724115038376,-420.0,0.00011812,2]
[335326519,1724115038388,-4910.12270938,0.00011987,2]
[335326522,1724115038398,-7013.41255393,0.00012163,2]
[335326526,1724115038409,-1613.45959463,0.00012163,2]
[335326529,1724115038419,-20794.87454007,0.00012163,2]
[335326531,1724115038428,-20794.87454007,0.00012163,2]
[335326534,1724115038437,-1766.47659697,0.00012356,2]
[335326537,1724115038446,-55116.9286434,0.00012506,2]
[335326539,1724115038456,-189.81675192,0.00012529,2]
[335326541,1724115038465,-3092.64278727,0.00012629,2]
[335326543,1724115038475,-1005.16972087,0.00012629,2]
[335326545,1724115038484,-155.45278767,0.00012779,2]
[335326546,1724115038492,-226.81150373,0.00012898,2]
[335326548,1724115038501,-38295.53576031,0.00012898,2]
[335326550,1724115038517,-1132.3872544,0.00012898,2]
[335326553,1724115038542,-2983.67663199,0.00012898,2]
[335326555,1724115038552,-155.32884545,0.00012934,2]
[335326557,1724115038562,-210.23989812,0.00012934,2]
[335326559,1724115038572,-300.0,0.00012974,2]
[335326561,1724115038582,-260.30171129,0.00012985,2]
[335326563,1724115038591,-305.22762449,0.00012985,2]
[335326564,1724115038602,-898.70545475,0.00012989,2]
[335326566,1724115038612,-9659.27545044,0.00012989,2]
[335326568,1724115038621,-587.0,0.00012993,2]
[335326570,1724115038631,-493.30764145,0.00012999,2]
[335326572,1724115038640,-1500.0,0.00012999,2]
[335326573,1724115038649,-154.76012181,0.00012999,2]
[335326575,1724115038658,-342.65845262,0.00013051,2]
[335326577,1724115038668,-688.676981,0.00013051,2]
[335326579,1724115038677,-157.09608348,0.00013051,2]
[335326580,1724115038686,-295.46454417,0.00013477,2]
[335326582,1724115038696,-215.11741299,0.00013477,2]
[335326584,1724115038705,-55116.9286434,0.00013487,2]
[335326586,1724115038714,-999.03147275,0.00013497,2]
[335326587,1724115038722,-2165.20291982,0.00013497,2]
[335326589,1724115038731,-543.08033697,0.00013497,2]
[335326591,1724115038741,-55116.9286434,0.00013586,2]
[335326593,1724115038750,-500.0,0.00013596,2]
[335326594,1724115038759,-155.06130741,0.00013596,2]
[335326596,1724115038769,-154.94299491,0.00013596,2]
[335326598,1724115038778,-600.8534117,0.00013596,2]
[335326600,1724115038787,-301.46890977,0.00013596,2]
[335326602,1724115038796,-500.219637,0.00013597,2]
[335326604,1724115038806,-500.219637,0.00013597,2]
[335326605,1724115038815,-2124.8772303,0.00013597,2]
[335326607,1724115038824,-282.74733365,0.00013597,2]
[335326609,1724115038833,-939.52763909,0.00013599,2]
[335326611,1724115038843,-319.72766707,0.00013599,2]
[335326613,1724115038853,-154.76012181,0.00013599,2]
[335326615,1724115038862,-569.55611374,0.00013599,2]
[335326616,1724115038872,-3000.0,0.000136,2]
[335326618,1724115038881,-500.219637,0.00013668,2]
[335326620,1724115038891,-500.219637,0.00013668,2]
[335326622,1724115038900,-200.0,0.00013673,2]
[335326624,1724115038909,-500.219637,0.00013688,2]
[335326626,1724115038918,-500.219637,0.00013688,2]
[335326627,1724115038927,-310.64151015,0.00013698,2]
[335326629,1724115038936,-500.0,0.00013698,2]
[335326631,1724115038945,-170.68402929,0.00013698,2]
[335326633,1724115038954,-500.0,0.00013698,2]
[335326635,1724115038963,-500.0,0.00013698,2]
[335326636,1724115038972,-500.0,0.00013698,2]
[335326638,1724115038982,-500.0,0.00013698,2]
[335326640,1724115038991,-500.0,0.00013698,2]
[335326642,1724115039000,-500.0,0.00013698,2]
[335326644,1724115039009,-274.92940167,0.00013698,2]
[335326646,1724115039018,-500.0,0.00013698,2]
[335326648,1724115039027,-500.0,0.00013698,2]
[335326649,1724115039036,-500.0,0.00013698,2]
[335326651,1724115039045,-298.12004184,0.00013698,2]
[335326653,1724115039054,-500.0,0.00013698,2]
[335326655,1724115039064,-500.0,0.00013698,2]
[335326657,1724115039074,-308.25508352,0.00013698,2]
[335326659,1724115039083,-151.0,0.00013699,2]
[335326661,1724115039092,-351.012483,0.00013699,2]
[335326662,1724115039107,-351.012483,0.00013699,2]
[335326664,1724115039116,-162.029148,0.00013699,2]
[335326666,1724115039125,-151.0,0.00013699,2]
[335326668,1724115039134,-151.0,0.00013699,2]
[335326670,1724115039143,-151.0,0.00013699,2]
[335326672,1724115039153,-282.050629,0.00013699,2]
[335326674,1724115039163,-282.050629,0.00013699,2]
[335326676,1724115039172,-151.0,0.00013699,2]
[335326677,1724115039181,-151.0,0.00013699,2]
[335326679,1724115039191,-151.0,0.00013699,2]
[335326681,1724115039201,-151.0,0.00013699,2]
[335326683,1724115039210,-151.0,0.00013699,2]
[335326685,1724115039219,-151.0,0.00013699,2]
[335326686,1724115039229,-151.0,0.00013699,2]
[335326688,1724115039238,-151.0,0.00013699,2]
[335326689,1724115039248,-297.133422,0.00013699,2]
[335326690,1724115039257,-297.133422,0.00013699,2]
[335326691,1724115039266,-297.133422,0.00013699,2]
[335326692,1724115039276,-151.0,0.00013699,2]
[335326693,1724115039285,-297.133422,0.00013699,2]
[335326694,1724115039295,-297.133422,0.00013699,2]
[335326695,1724115039308,-297.133422,0.00013699,2]
[335326696,1724115039318,-151.921948,0.00013699,2]
[335326697,1724115039327,-151.921948,0.00013699,2]
[335326698,1724115039337,-151.921948,0.00013699,2]
[335326699,1724115039347,-151.921948,0.00013699,2]
[335326700,1724115039356,-151.921948,0.00013699,2]
[335326701,1724115039365,-151.921948,0.00013699,2]
[335326702,1724115039376,-151.0,0.00013699,2]
[335326703,1724115039385,-151.0,0.00013699,2]
[335326704,1724115039394,-151.0,0.00013699,2]
[335326705,1724115039404,-151.0,0.00013699,2]
[335326706,1724115039414,-151.0,0.00013699,2]
[335326707,1724115039423,-151.355207,0.00013699,2]
[335326708,1724115039433,-270.951629,0.00013699,2]
[335326709,1724115039442,-270.951629,0.00013699,2]
[335326710,1724115039452,-270.951629,0.00013699,2]
[335326711,1724115039462,-270.951629,0.00013699,2]
[335326712,1724115039474,-166.231374,0.00013699,2]
[335326713,1724115039483,-270.951629,0.00013699,2]
[335326714,1724115039495,-270.951629,0.00013699,2]
[335326715,1724115039505,-166.231374,0.00013699,2]
[335326716,1724115039514,-166.231374,0.00013699,2]
[335326717,1724115039524,-166.231374,0.00013699,2]
[335326718,1724115039533,-166.231374,0.00013699,2]
[335326719,1724115039544,-166.231374,0.00013699,2]
[335326720,1724115039554,-474.637957,0.00013699,2]
[335326721,1724115039563,-474.637957,0.00013699,2]
[335326722,1724115039572,-474.637957,0.00013699,2]
[335326723,1724115039582,-151.0,0.00013699,2]
[335326724,1724115039593,-151.0,0.00013699,2]
[335326725,1724115039606,-474.637957,0.00013699,2]
[335326726,1724115039624,-474.637957,0.00013699,2]
[335326727,1724115039633,-474.637957,0.00013699,2]
[335326728,1724115039644,-175.2336411,0.00013699,2]
[335326729,1724115039655,-151.0,0.00013699,2]
[335326730,1724115039665,-151.0,0.00013699,2]
[335326731,1724115039676,-151.0,0.00013699,2]
[335326732,1724115039687,-151.0,0.00013699,2]
[335326733,1724115039698,-151.0,0.00013699,2]
[335326734,1724115039710,-151.0,0.00013699,2]
[335326735,1724115039720,-468.693972,0.00013699,2]
[335326736,1724115039731,-468.693972,0.00013699,2]
[335326737,1724115039741,-468.693972,0.00013699,2]
[335326738,1724115039751,-468.693972,0.00013699,2]
[335326739,1724115039760,-468.693972,0.00013699,2]
[335326740,1724115039771,-468.693972,0.00013699,2]
[335326741,1724115039782,-468.693972,0.00013699,2]
[335326742,1724115039791,-183.253193,0.00013699,2]
[335326743,1724115039802,-468.693972,0.00013699,2]
[335326744,1724115039813,-183.253193,0.00013699,2]
[335326745,1724115039825,-183.253193,0.00013699,2]
[335326746,1724115039835,-183.253193,0.00013699,2]
[335326747,1724115039844,-183.253193,0.00013699,2]
[335326748,1724115039856,-183.253193,0.00013699,2]
[335326749,1724115039866,-183.253193,0.00013699,2]
[335326750,1724115039876,-183.253193,0.00013699,2]
[335326751,1724115039886,-151.0,0.00013699,2]
[335326752,1724115039896,-151.0,0.00013699,2]
[335326754,1724115039905,-1827.8092608,0.00013699,2]
[335326756,1724115039914,-153.528801,0.00013699,2]
[335326758,1724115039923,-151.0,0.00013699,2]
[335326759,1724115039933,-247.310179,0.00013699,2]
[335326760,1724115039942,-151.0,0.00013699,2]
[335326761,1724115039951,-151.0,0.00013699,2]
[335326762,1724115039961,-151.0,0.00013699,2]
[335326763,1724115039970,-151.0,0.00013699,2]
[335326764,1724115039979,-705.3916751,0.00013699,2]
[335326765,1724115039989,-151.0,0.00013699,2]
[335326766,1724115039998,-151.0,0.00013699,2]
[335326767,1724115040008,-151.0,0.00013699,2]
[335326768,1724115040017,-234.084086,0.00013699,2]
[335326769,1724115040026,-151.0,0.00013699,2]
[335326770,1724115040036,-151.0,0.00013699,2]
[335326771,1724115040045,-151.0,0.00013699,2]
[335326772,1724115040054,-151.0,0.00013699,2]
[335326773,1724115040063,-151.0,0.00013699,2]
[335326774,1724115040072,-151.0,0.00013699,2]
[335326776,1724115040081,-151.0,0.00013699,2]
[335326777,1724115040092,-151.0,0.00013699,2]
[335326778,1724115040105,-256.56646991,0.00013699,2]
[335326779,1724115040114,-194.82337617,0.00013699,2]
[335326780,1724115040124,-500.0,0.00013699,2]
[335326781,1724115040135,-500.0,0.00013699,2]
[335326782,1724115040146,-500.0,0.00013699,2]
[335326783,1724115040156,-151.0,0.00013699,2]
[335326784,1724115040166,-500.0,0.00013699,2]
[335326785,1724115040177,-500.0,0.00013699,2]
[335326786,1724115040187,-500.0,0.00013699,2]
[335326787,1724115040198,-500.0,0.00013699,2]
[335326788,1724115040209,-500.0,0.00013699,2]
[335326789,1724115040219,-308.81743062,0.00013699,2]
[335326790,1724115040230,-500.0,0.00013699,2]
[335326791,1724115040241,-500.0,0.00013699,2]
[335326792,1724115040251,-151.0,0.00013699,2]
[335326793,1724115040261,-151.0,0.00013699,2]
[335326794,1724115040271,-500.0,0.00013699,2]
[335326795,1724115040282,-500.0,0.00013699,2]
[335326796,1724115040293,-500.0,0.00013699,2]
[335326798,1724115040305,-366.26738909,0.00013699,2]
[335326800,1724115040315,-500.0,0.00013699,2]
[335326801,1724115040326,-200.0,0.0001376,2]
[335326802,1724115040337,-200.0,0.0001376,2]
[335326803,1724115040347,-151.0,0.00013961,2]
[335326805,1724115040357,-151.0,0.00013961,2]
[335326806,1724115040367,-297.133422,0.00013961,2]
[335326807,1724115040377,-297.133422,0.00013961,2]
[335326808,1724115040387,-151.921948,0.00013961,2]
[335326809,1724115040396,-151.921948,0.00013961,2]
[335326810,1724115040406,-500.219637,0.00013961,2]
[335326811,1724115040415,-500.219637,0.00013961,2]
[335326812,1724115040424,-270.951629,0.00013961,2]
[335326813,1724115040434,-270.951629,0.00013961,2]
[335326814,1724115040444,-166.231374,0.00013961,2]
[335326815,1724115040453,-166.231374,0.00013961,2]
[335326816,1724115040462,-474.637957,0.00013961,2]
[335326817,1724115040473,-474.637957,0.00013961,2]
[335326818,1724115040482,-151.0,0.00013961,2]
[335326819,1724115040493,-151.0,0.00013961,2]
[335326820,1724115040503,-468.693972,0.00013961,2]
[335326821,1724115040515,-468.693972,0.00013961,2]
[335326822,1724115040525,-183.253193,0.00013961,2]
[335326823,1724115040538,-183.253193,0.00013961,2]
[335326824,1724115040548,-494.54531599,0.00013971,2]
[335326825,1724115040559,-154.87928064,0.00013971,2]
[335326826,1724115040570,-154.80647338,0.00013971,2]
[335326827,1724115040580,-810.48415788,0.00014245,2]
[335326828,1724115040592,-404.43330921,0.00014245,2]
[335326829,1724115040604,-164.813088,0.00014247,2]
[335326830,1724115040615,-738.053589,0.00014247,2]
[335326831,1724115040625,-189.8167519,0.00014284,2]
[335326832,1724115040635,-823.0,0.00014293,2]
[335326833,1724115040646,-150.112233,0.000147,2]
[335326834,1724115040656,-151.0,0.00014945,2]
[335326835,1724115040667,-151.0,0.00014945,2]
[335326836,1724115040678,-210.537812,0.00014945,2]
[335326838,1724115040688,-55116.9286434,0.00014945,2]
[335326840,1724115040698,-227.88054601,0.00015,2]
[335326841,1724115040708,-400.0,0.00015042,2]
[335326842,1724115040718,-151.0,0.00015068,2]
[335326843,1724115040728,-151.0,0.00015068,2]
[335326844,1724115040871,-151.0,0.00015068,2]
[335326845,1724115040882,-151.0,0.00015068,2]
[335326846,1724115040894,-151.0,0.00015068,2]
[335326847,1724115040905,-216.368292,0.00015068,2]
[335326848,1724115040916,-150.112233,0.000151,2]
[335326849,1724115040928,-352.56929023,0.0001513,2]
[335326850,1724115040940,-400.0,0.0001513,2]
[335326851,1724115040950,-150.112233,0.000154,2]
[335326852,1724115040961,-1152.0,0.00015722,2]
[335326853,1724115040972,-150.112233,0.000158,2]
[335326854,1724115040983,-306.0,0.00015836,2]
[335326855,1724115040994,-465.8297061,0.00015838,2]
[335326856,1724115041005,-293.920044,0.0001589,2]
[335326857,1724115041015,-953.38755458,0.00015931,2]
[335326858,1724115041027,-5328.69624806,0.00015944,2]
[335326859,1724115041038,-9444.39953667,0.00016,2]
[335326860,1724115041049,-151.0,0.00016,2]
[335326861,1724115041058,-249.174773,0.00016,2]
[335326862,1724115041067,-189.8167519,0.00016039,2]
[335326863,1724115041076,-272103.61322092,0.00016068,5]
[335326864,1724115041086,-151.0,0.00016068,2]
[335326865,1724115041097,-151.0,0.00016068,2]
[335326866,1724115041106,-1200.0,0.00016068,2]
[335326867,1724115041115,-1200.0,0.00016068,2]
[335326868,1724115041124,-1200.0,0.00016068,2]
[335326869,1724115041133,-1200.0,0.00016068,2]
[335326870,1724115041143,-1200.0,0.00016068,2]
[335326871,1724115041152,-1200.0,0.00016068,2]
[335326872,1724115041161,-1200.0,0.00016068,2]
[335326873,1724115041171,-1200.0,0.00016068,2]
[335326874,1724115041180,-297.133422,0.00016068,2]
[335326875,1724115041189,-297.133422,0.00016068,2]
[335326876,1724115041198,-297.133422,0.00016068,2]
[335326877,1724115041209,-297.133422,0.00016068,2]
[335326878,1724115041219,-151.921948,0.00016068,2]
[335326879,1724115041230,-151.921948,0.00016068,2]
[335326880,1724115041241,-151.921948,0.00016068,2]
[335326881,1724115041250,-151.921948,0.00016068,2]
[335326882,1724115041260,-500.219637,0.00016068,2]
[335326883,1724115041272,-500.219637,0.00016068,2]
[335326884,1724115041282,-500.219637,0.00016068,2]
[335326885,1724115041293,-500.219637,0.00016068,2]
[335326886,1724115041308,-270.951629,0.00016068,2]
[335326887,1724115041318,-270.951629,0.00016068,2]
[335326888,1724115041329,-270.951629,0.00016068,2]
[335326889,1724115041339,-270.951629,0.00016068,2]
[335326890,1724115041352,-166.231374,0.00016068,2]
[335326891,1724115041362,-166.231374,0.00016068,2]
[335326892,1724115041373,-166.231374,0.00016068,2]
[335326893,1724115041386,-166.231374,0.00016068,2]
[335326894,1724115041397,-474.637957,0.00016068,2]
[335326895,1724115041408,-474.637957,0.00016068,2]
[335326896,1724115041419,-474.637957,0.00016068,2]
[335326897,1724115041430,-474.637957,0.00016068,2]
[335326898,1724115041439,-151.0,0.00016068,2]
[335326899,1724115041449,-151.0,0.00016068,2]
[335326900,1724115041458,-151.0,0.00016068,2]
[335326901,1724115041468,-151.0,0.00016068,2]
[335326902,1724115041477,-468.693972,0.00016068,2]
[335326903,1724115041489,-468.693972,0.00016068,2]
[335326904,1724115041499,-468.693972,0.00016068,2]
[335326905,1724115041510,-468.693972,0.00016068,2]
[335326906,1724115041520,-183.253193,0.00016068,2]
[335326907,1724115041532,-183.253193,0.00016068,2]
[335326908,1724115041543,-151.0,0.00016068,2]
[335326909,1724115041554,-151.0,0.00016068,2]
[335326910,1724115041568,-183.253193,0.00016068,2]
[335326911,1724115041579,-183.253193,0.00016068,2]
[335326912,1724115041590,-151.0,0.00016068,2]
[335326913,1724115041600,-151.0,0.00016068,2]
[335326914,1724115041611,-151.0,0.00016068,2]
[335326915,1724115041623,-151.0,0.00016068,2]
[335326916,1724115041633,-55116.9286434,0.00016068,2]
[335326917,1724115041643,-151.0,0.00016073,2]
[335326918,1724115041654,-167.200843,0.00016073,2]
[335326919,1724115041664,-151.0,0.00016073,2]
[335326920,1724115041675,-351.012483,0.00016073,2]
[335326921,1724115041685,-351.012483,0.00016073,2]
[335326922,1724115041696,-261.466176,0.00016073,2]
[335326923,1724115041707,-282.050629,0.00016073,2]
[335326924,1724115041717,-282.050629,0.00016073,2]
[335326925,1724115041727,-151.0,0.00016073,2]
[335326926,1724115041738,-151.0,0.00016078,2]
[335326927,1724115041747,-151.0,0.00016078,2]
[335326928,1724115041756,-351.012483,0.00016078,2]
[335326929,1724115041766,-351.012483,0.00016078,2]
[335326930,1724115041775,-282.050629,0.00016078,2]
[335326931,1724115041785,-282.050629,0.00016078,2]
[335326932,1724115041794,-151.0,0.00016078,2]
[335326933,1724115041803,-151.0,0.00016088,2]
[335326934,1724115041812,-151.0,0.00016088,2]
[335326935,1724115041821,-151.0,0.00016088,2]
[335326936,1724115041831,-150.0,0.00016089,2]
[335326937,1724115041841,-521.0,0.00016089,2]
[335326938,1724115041852,-1414.0,0.00016089,2]
[335326939,1724115041861,-150.0,0.00016093,2]
[335326940,1724115041870,-297.133422,0.00016095,2]
[335326941,1724115041880,-297.133422,0.00016095,2]
[335326942,1724115041890,-151.921948,0.00016095,2]
[335326943,1724115041900,-151.921948,0.00016095,2]
[335326944,1724115041910,-270.951629,0.00016095,2]
[335326945,1724115041921,-270.951629,0.00016095,2]
[335326946,1724115041930,-166.231374,0.00016095,2]
[335326947,1724115041940,-166.231374,0.00016095,2]
[335326948,1724115041952,-474.637957,0.00016095,2]
[335326949,1724115041962,-474.637957,0.00016095,2]
[335326950,1724115041973,-151.0,0.00016095,2]
[335326951,1724115041984,-243.931448,0.00016095,2]
[335326952,1724115041994,-150.112233,0.000161,2]
[335326953,1724115042004,-468.693972,0.00016139,2]
[335326954,1724115042016,-468.693972,0.00016139,2]
[335326955,1724115042027,-183.253193,0.00016139,2]
[335326956,1724115042037,-151.0,0.00016139,2]
[335326957,1724115042046,-183.253193,0.00016139,2]
[335326958,1724115042057,-151.0,0.00016158,2]
[335326959,1724115042067,-151.0,0.00016239,2]
[335326960,1724115042077,-310.0,0.00016239,2]
[335326961,1724115042089,-457.120262,0.00016239,2]
[335326962,1724115042099,-151.0,0.00016239,2]
[335326963,1724115042110,-151.0,0.00016239,2]
[335326964,1724115042120,-151.0,0.00016239,2]
[335326965,1724115042131,-151.0,0.00016239,2]
[335326966,1724115042143,-500.0,0.0001624,2]
[335326967,1724115042154,-351.012483,0.0001626,2]
[335326968,1724115042164,-351.012483,0.0001626,2]
[335326969,1724115042174,-282.050629,0.00016273,2]
[335326970,1724115042185,-282.050629,0.00016273,2]
[335326971,1724115042195,-151.0,0.00016273,2]
[335326972,1724115042206,-500.219637,0.00016273,2]
[335326973,1724115042216,-500.219637,0.00016273,2]
[335326974,1724115042227,-151.0,0.00016273,2]
[335326975,1724115042238,-151.0,0.00016273,2]
[335326976,1724115042248,-500.0,0.00016274,2]
[335326977,1724115042260,-1110.9613583,0.00016302,2]
[335326978,1724115042271,-55116.9286434,0.00016318,2]
[335326979,1724115042283,-151.0,0.00016318,2]
[335326980,1724115042293,-351.012483,0.00016318,2]
[335326981,1724115042307,-351.012483,0.00016318,2]
[335326982,1724115042318,-282.050629,0.00016318,2]
[335326983,1724115042329,-282.050629,0.00016318,2]
[335326984,1724115042340,-151.0,0.00016318,2]
[335326985,1724115042353,-151.0,0.00016318,2]
[335326986,1724115042363,-151.0,0.00016318,2]
[335326987,1724115042373,-151.0,0.00016318,2]
[335326988,1724115042385,-154.69833824,0.00016328,2]
[335326989,1724115042395,-20018.66289191,0.00016328,2]
[335326990,1724115042405,-151.0,0.00016328,2]
[335326991,1724115042415,-351.012483,0.00016328,2]
[335326992,1724115042426,-351.012483,0.00016328,2]
[335326993,1724115042435,-282.050629,0.00016328,2]
[335326994,1724115042444,-282.050629,0.00016328,2]
[335326995,1724115042453,-151.0,0.00016328,2]
[335326996,1724115042463,-151.0,0.00016328,2]
[335326997,1724115042473,-151.0,0.00016328,2]
[335326998,1724115042483,-297.133422,0.00016328,2]
[335326999,1724115042492,-297.133422,0.00016328,2]
[335327000,1724115042503,-151.921948,0.00016328,2]
[335327001,1724115042513,-151.921948,0.00016328,2]
[335327002,1724115042524,-500.219637,0.00016328,2]
[335327003,1724115042535,-500.219637,0.00016328,2]
[335327004,1724115042545,-270.951629,0.00016328,2]
[335327005,1724115042555,-270.951629,0.00016328,2]
[335327006,1724115042564,-166.231374,0.00016328,2]
[335327007,1724115042574,-166.231374,0.00016328,2]
[335327008,1724115042583,-474.637957,0.00016328,2]
[335327009,1724115042592,-474.637957,0.00016328,2]
[335327010,1724115042605,-151.0,0.00016328,2]
[335327011,1724115042615,-468.693972,0.00016328,2]
[335327012,1724115042627,-468.693972,0.00016328,2]
[335327013,1724115042638,-183.253193,0.00016328,2]
[335327014,1724115042647,-151.0,0.00016328,2]
[335327015,1724115042659,-183.253193,0.00016328,2]
[335327019,1724115042672,-151.0,0.00016338,2]
[335327021,1724115042684,-151.0,0.00016338,2]
[335327023,1724115042697,-151.0,0.00016338,2]
[335327026,1724115042710,-151.0,0.00016338,2]
[335327028,1724115042723,-151.0,0.00016338,2]
[335327030,1724115042733,-151.0,0.00016338,2]
[335327032,1724115042744,-151.0,0.00016338,2]
[335327034,1724115042756,-351.012483,0.00016338,2]
[335327037,1724115042767,-351.012483,0.00016338,2]
[335327040,1724115042779,-282.050629,0.00016338,2]
[335327043,1724115042791,-282.050629,0.00016338,2]
[335327047,1724115042803,-151.0,0.00016338,2]
[335327051,1724115042815,-151.0,0.00016338,2]
[335327054,1724115042828,-151.0,0.00016338,2]
[335327056,1724115042839,-297.133422,0.00016338,2]
[335327059,1724115042851,-297.133422,0.00016338,2]
[335327061,1724115042864,-151.921948,0.00016338,2]
[335327063,1724115042876,-151.921948,0.00016338,2]
[335327066,1724115042890,-500.219637,0.00016338,2]
[335327068,1724115042901,-500.219637,0.00016338,2]
[335327070,1724115042912,-270.951629,0.00016338,2]
[335327071,1724115042924,-270.951629,0.00016338,2]
[335327073,1724115042935,-166.231374,0.00016338,2]
[335327075,1724115042946,-166.231374,0.00016338,2]
[335327076,1724115042959,-474.637957,0.00016338,2]
[335327077,1724115042972,-474.637957,0.00016338,2]
[335327078,1724115042984,-151.0,0.00016338,2]
[335327079,1724115042995,-468.693972,0.00016338,2]
[335327080,1724115043007,-468.69396234,0.00016338,2]
[335327081,1724115043018,-183.253193,0.00016338,2]
[335327082,1724115043028,-151.0,0.00016338,2]
[335327083,1724115043038,-183.253201,0.00016338,2]
[335327084,1724115043049,-40000.0,0.00016338,2]
[335327085,1724115043059,-151.0,0.00016339,2]
[335327086,1724115043071,-267.686174,0.00016339,2]
[335327087,1724115043083,-151.0,0.00016339,2]
[335327088,1724115043095,-150.01,0.00016349,2]
[335327089,1724115043115,-3595.96370167,0.00016349,2]
[335327090,1724115043127,-151.0,0.0001635,2]
[335327091,1724115043139,-151.0,0.0001635,2]
[335327092,1724115043151,-151.0,0.0001635,2]
[335327093,1724115043164,-351.012483,0.0001635,2]
[335327094,1724115043176,-351.012483,0.0001635,2]
[335327095,1724115043188,-282.050629,0.0001635,2]
[335327096,1724115043200,-282.050629,0.0001635,2]
[335327097,1724115043213,-151.0,0.0001635,2]
[335327098,1724115043223,-151.0,0.0001635,2]
[335327099,1724115043234,-104953.68720576,0.0001636,2]
[335327335,1724115647495,155.0,7.376e-05,2]
[335327336,1724115652532,155.0,7.376e-05,2]
[335327337,1724115657098,155.0,7.376e-05,2]
[335327338,1724115661932,155.0,7.376e-05,2]
[335327339,1724115666554,155.0,7.376e-05,2]
[335327340,1724115671080,155.0,7.376e-05,2]
[335327341,1724115675621,155.0,7.376e-05,2]
[335327342,1724115680190,155.0,7.376e-05,2]
[335327343,1724115684716,155.0,7.376e-05,2]
[335327344,1724115689265,231.42704943,7.376e-05,2]
[335327345,1724115729142,405.4347584,7.376e-05,2]
[335327346,1724115729700,180.17462245,7.376e-05,2]
[335327347,1724115733670,16318.75386369,7.376e-05,2]
[335327349,1724115736655,161.83409761,7.376e-05,2]
[335327350,1724115766095,834.32224871,7.376e-05,2]
[335327351,1724115768606,245.37793569,7.376e-05,2]
[335327352,1724115775562,1929.22280424,7.376e-05,2]
[335327355,1724115830723,13312.41882317,7.376e-05,2]
[335327356,1724115862143,343.39599935,7.376e-05,2]
[335327361,1724115999557,1717.89561353,7.376e-05,2]
[335327362,1724116006834,280.12797765,7.376e-05,2]
[335327363,1724116015564,4718.29455301,7.376e-05,2]
[335327364,1724116018688,154.77556307,7.376e-05,2]
[335327381,1724116165624,4641.34700085,7.376e-05,2]
[335327382,1724116169934,227.88054601,7.3e-05,2]
[335327444,1724116232387,-1344.30687334,7.58e-05,2]
[335328052,1724116238332,-3655.69312666,7.58e-05,2]
[335328053,1724116238341,-300.0,7.649e-05,2]
[335328054,1724116238351,-24900.0,7.65e-05,2]
[335328055,1724116238360,-1010.23989812,7.657e-05,2]
[335328056,1724116238370,-1297.4673636,7.734e-05,2]
[335328057,1724116238379,-810.66153205,7.911e-05,2]
[335328058,1724116238388,-780.05358786,7.911e-05,2]